{"text_format":"1","workbook":"xlsx","n_sheets":6,"sheets":["EVIDENCIJA ZA RABOTA","RABOTEN NALOG","POTVRDA ZA NAPLATA","GEZA","MAGARE","FIRMA"],"not_rendered":{"charts":0,"images":1,"macros":1,"external_links":0,"defined_names":4,"comments":0,"pivot_tables":0},"unopened":[],"bounds":{"document_bytes":16777216,"sheet_cells":100000,"rows_first":2000,"rows_last":500,"rows_between":2000,"halvings":0,"cell_chars":16384,"cell_head_chars":4096},"cells_cut":0,"cells_raw":0,"read":"whole","date_system":"1900"}

{"sheet":"EVIDENCIJA ZA RABOTA","index":0,"n_rows":304,"n_cols":28,"rows_kept":304,"cut":false,"hidden":false,"merged":[[0,0,2,7],[0,9,1,11]]}
[]
[]
[null,null,null,null,null,null,null,null,null,{"$f":"SUM(J5:J304)","v":0},{"$f":"SUM(K5:K304)","v":0},{"$f":"SUM(L5:L304)","v":0}]
["R.Br.","Ime i Prezime","Adresa","Telefon","Datum na prijava","Datum za realizacijaj","Den.za realiz.","Rabota","Zabele[ka","Za Pla]awe","Plateno","Ne Plateno","Data 1","Uplata 1","Data 2","Uplata 2","Data 3","Uplata 3","Data 4","Uplata 4","Data 5","Uplata 5","Data 6","Uplata 6",null,null,"DATA","Rabota"]
[1,null,null,null,null,null,{"$f":"IF(F5-AA5>=1,F5-AA5,\"Pominat rok\")","v":"Pominat rok"},null,null,null,{"$f":"N5+P5+R5+T5+V5+X5","v":0},{"$f":"IF(J5-K5>=1,J5-K5,\"Plateno   \")","v":"Plateno   "},null,null,null,null,null,null,null,null,null,null,null,null,null,null,{"$f":"TODAY()","v":"2011-12-28"},"PVC"]
[2,null,null,null,null,null,{"$f":"IF(F6-AA6>=1,F6-AA6,\"Pominat rok\")","v":"Pominat rok"},null,null,null,{"$f":"N6+P6+R6+T6+V6+X6","v":0},{"$f":"IF(J6-K6>=1,J6-K6,\"Plateno   \")","v":"Plateno   "},null,null,null,null,null,null,null,null,null,null,null,null,null,null,{"$f":"TODAY()","v":"2011-12-28"},"Venecijan"]
[3,null,null,null,null,null,"Pominat rok",null,null,null,0,"Plateno   ",null,null,null,null,null,null,null,null,null,null,null,null,null,null,"2011-12-28","Variolajt"]
[4,null,null,null,null,null,"Pominat rok",null,null,null,0,"Plateno   ",null,null,null,null,null,null,null,null,null,null,null,null,null,null,"2011-12-28","Alu.Ograda"]
[5,null,null,null,null,null,"Pominat rok",null,null,null,0,"Plateno   ",null,null,null,null,null,null,null,null,null,null,null,null,null,null,"2011-12-28","Enterier"]
[6,null,null,null,null,null,"Pominat rok",null,null,null,0,"Plateno   ",null,null,null,null,null,null,null,null,null,null,null,null,null,null,"2011-12-28","Kujna"]
[7,null,null,null,null,null,"Pominat rok",null,null,null,0,"Plateno   ",null,null,null,null,null,null,null,null,null,null,null,null,null,null,"2011-12-28"]
[8,null,null,null,null,null,"Pominat rok",null,null,null,0,"Plateno   ",null,null,null,null,null,null,null,null,null,null,null,null,null,null,"2011-12-28"]
[9,null,null,null,null,null,"Pominat rok",null,null,null,0,"Plateno   ",null,null,null,null,null,null,null,null,null,null,null,null,null,null,"2011-12-28"]
[10,null,null,null,null,null,"Pominat rok",null,null,null,0,"Plateno   ",null,null,null,null,null,null,null,null,null,null,null,null,null,null,"2011-12-28"]
[11,null,null,null,null,null,"Pominat rok",null,null,null,0,"Plateno   ",null,null,null,null,null,null,null,null,null,null,null,null,null,null,"2011-12-28"]
[12,null,null,null,null,null,"Pominat rok",null,null,null,0,"Plateno   ",null,null,null,null,null,null,null,null,null,null,null,null,null,null,"2011-12-28"]
[13,null,null,null,null,null,"Pominat rok",null,null,null,0,"Plateno   ",null,null,null,null,null,null,null,null,null,null,null,null,null,null,"2011-12-28"]
[14,null,null,null,null,null,"Pominat rok",null,null,null,0,"Plateno   ",null,null,null,null,null,null,null,null,null,null,null,null,null,null,"2011-12-28"]
[15,null,null,null,null,null,"Pominat rok",null,null,null,0,"Plateno   ",null,null,null,null,null,null,null,null,null,null,null,null,null,null,"2011-12-28"]
[16,null,null,null,null,null,"Pominat rok",null,null,null,0,"Plateno   ",null,null,null,null,null,null,null,null,null,null,null,null,null,null,"2011-12-28"]
[17,null,null,null,null,null,"Pominat rok",null,null,null,0,"Plateno   ",null,null,null,null,null,null,null,null,null,null,null,null,null,null,"2011-12-28"]
[18,null,null,null,null,null,"Pominat rok",null,null,null,0,"Plateno   ",null,null,null,null,null,null,null,null,null,null,null,null,null,null,"2011-12-28"]
[19,null,null,null,null,null,"Pominat rok",null,null,null,0,"Plateno   ",null,null,null,null,null,null,null,null,null,null,null,null,null,null,"2011-12-28"]
[20,null,null,null,null,null,"Pominat rok",null,null,null,0,"Plateno   ",null,null,null,null,null,null,null,null,null,null,null,null,null,null,"2011-12-28"]
[21,null,null,null,null,null,"Pominat rok",null,null,null,0,"Plateno   ",null,null,null,null,null,null,null,null,null,null,null,null,null,null,"2011-12-28"]
[22,null,null,null,null,null,"Pominat rok",null,null,null,0,"Plateno   ",null,null,null,null,null,null,null,null,null,null,null,null,null,null,"2011-12-28"]
[23,null,null,null,null,null,"Pominat rok",null,null,null,0,"Plateno   ",null,null,null,null,null,null,null,null,null,null,null,null,null,null,"2011-12-28"]
[24,null,null,null,null,null,"Pominat rok",null,null,null,0,"Plateno   ",null,null,null,null,null,null,null,null,null,null,null,null,null,null,"2011-12-28"]
[25,null,null,null,null,null,"Pominat rok",null,null,null,0,"Plateno   ",null,null,null,null,null,null,null,null,null,null,null,null,null,null,"2011-12-28"]
[26,null,null,null,null,null,"Pominat rok",null,null,null,0,"Plateno   ",null,null,null,null,null,null,null,null,null,null,null,null,null,null,"2011-12-28"]
[27,null,null,null,null,null,"Pominat rok",null,null,null,0,"Plateno   ",null,null,null,null,null,null,null,null,null,null,null,null,null,null,"2011-12-28"]
[28,null,null,null,null,null,"Pominat rok",null,null,null,0,"Plateno   ",null,null,null,null,null,null,null,null,null,null,null,null,null,null,"2011-12-28"]
[29,null,null,null,null,null,"Pominat rok",null,null,null,0,"Plateno   ",null,null,null,null,null,null,null,null,null,null,null,null,null,null,"2011-12-28"]
[30,null,null,null,null,null,"Pominat rok",null,null,null,0,"Plateno   ",null,null,null,null,null,null,null,null,null,null,null,null,null,null,"2011-12-28"]
[31,null,null,null,null,null,"Pominat rok",null,null,null,0,"Plateno   ",null,null,null,null,null,null,null,null,null,null,null,null,null,null,"2011-12-28"]
[32,null,null,null,null,null,"Pominat rok",null,null,null,0,"Plateno   ",null,null,null,null,null,null,null,null,null,null,null,null,null,null,"2011-12-28"]
[33,null,null,null,null,null,"Pominat rok",null,null,null,0,"Plateno   ",null,null,null,null,null,null,null,null,null,null,null,null,null,null,"2011-12-28"]
[34,null,null,null,null,null,"Pominat rok",null,null,null,0,"Plateno   ",null,null,null,null,null,null,null,null,null,null,null,null,null,null,"2011-12-28"]
[35,null,null,null,null,null,"Pominat rok",null,null,null,0,"Plateno   ",null,null,null,null,null,null,null,null,null,null,null,null,null,null,"2011-12-28"]
[36,null,null,null,null,null,"Pominat rok",null,null,null,0,"Plateno   ",null,null,null,null,null,null,null,null,null,null,null,null,null,null,"2011-12-28"]
[37,null,null,null,null,null,"Pominat rok",null,null,null,0,"Plateno   ",null,null,null,null,null,null,null,null,null,null,null,null,null,null,"2011-12-28"]
[38,null,null,null,null,null,"Pominat rok",null,null,null,0,"Plateno   ",null,null,null,null,null,null,null,null,null,null,null,null,null,null,"2011-12-28"]
[39,null,null,null,null,null,"Pominat rok",null,null,null,0,"Plateno   ",null,null,null,null,null,null,null,null,null,null,null,null,null,null,"2011-12-28"]
[40,null,null,null,null,null,"Pominat rok",null,null,null,0,"Plateno   ",null,null,null,null,null,null,null,null,null,null,null,null,null,null,"2011-12-28"]
[41,null,null,null,null,null,"Pominat rok",null,null,null,0,"Plateno   ",null,null,null,null,null,null,null,null,null,null,null,null,null,null,"2011-12-28"]
[42,null,null,null,null,null,"Pominat rok",null,null,null,0,"Plateno   ",null,null,null,null,null,null,null,null,null,null,null,null,null,null,"2011-12-28"]
[43,null,null,null,null,null,"Pominat rok",null,null,null,0,"Plateno   ",null,null,null,null,null,null,null,null,null,null,null,null,null,null,"2011-12-28"]
[44,null,null,null,null,null,"Pominat rok",null,null,null,0,"Plateno   ",null,null,null,null,null,null,null,null,null,null,null,null,null,null,"2011-12-28"]
[45,null,null,null,null,null,"Pominat rok",null,null,null,0,"Plateno   ",null,null,null,null,null,null,null,null,null,null,null,null,null,null,"2011-12-28"]
[46,null,null,null,null,null,"Pominat rok",null,null,null,0,"Plateno   ",null,null,null,null,null,null,null,null,null,null,null,null,null,null,"2011-12-28"]
[47,null,null,null,null,null,"Pominat rok",null,null,null,0,"Plateno   ",null,null,null,null,null,null,null,null,null,null,null,null,null,null,"2011-12-28"]
[48,null,null,null,null,null,"Pominat rok",null,null,null,0,"Plateno   ",null,null,null,null,null,null,null,null,null,null,null,null,null,null,"2011-12-28"]
[49,null,null,null,null,null,"Pominat rok",null,null,null,0,"Plateno   ",null,null,null,null,null,null,null,null,null,null,null,null,null,null,"2011-12-28"]
[50,null,null,null,null,null,"Pominat rok",null,null,null,0,"Plateno   ",null,null,null,null,null,null,null,null,null,null,null,null,null,null,"2011-12-28"]
[51,null,null,null,null,null,"Pominat rok",null,null,null,0,"Plateno   ",null,null,null,null,null,null,null,null,null,null,null,null,null,null,"2011-12-28"]
[52,null,null,null,null,null,"Pominat rok",null,null,null,0,"Plateno   ",null,null,null,null,null,null,null,null,null,null,null,null,null,null,"2011-12-28"]
[53,null,null,null,null,null,"Pominat rok",null,null,null,0,"Plateno   ",null,null,null,null,null,null,null,null,null,null,null,null,null,null,"2011-12-28"]
[54,null,null,null,null,null,"Pominat rok",null,null,null,0,"Plateno   ",null,null,null,null,null,null,null,null,null,null,null,null,null,null,"2011-12-28"]
[55,null,null,null,null,null,"Pominat rok",null,null,null,0,"Plateno   ",null,null,null,null,null,null,null,null,null,null,null,null,null,null,"2011-12-28"]
[56,null,null,null,null,null,"Pominat rok",null,null,null,0,"Plateno   ",null,null,null,null,null,null,null,null,null,null,null,null,null,null,"2011-12-28"]
[57,null,null,null,null,null,"Pominat rok",null,null,null,0,"Plateno   ",null,null,null,null,null,null,null,null,null,null,null,null,null,null,"2011-12-28"]
[58,null,null,null,null,null,"Pominat rok",null,null,null,0,"Plateno   ",null,null,null,null,null,null,null,null,null,null,null,null,null,null,"2011-12-28"]
[59,null,null,null,null,null,"Pominat rok",null,null,null,0,"Plateno   ",null,null,null,null,null,null,null,null,null,null,null,null,null,null,"2011-12-28"]
[60,null,null,null,null,null,"Pominat rok",null,null,null,0,"Plateno   ",null,null,null,null,null,null,null,null,null,null,null,null,null,null,"2011-12-28"]
[61,null,null,null,null,null,"Pominat rok",null,null,null,0,"Plateno   ",null,null,null,null,null,null,null,null,null,null,null,null,null,null,"2011-12-28"]
[62,null,null,null,null,null,"Pominat rok",null,null,null,0,"Plateno   ",null,null,null,null,null,null,null,null,null,null,null,null,null,null,"2011-12-28"]
[63,null,null,null,null,null,"Pominat rok",null,null,null,0,"Plateno   ",null,null,null,null,null,null,null,null,null,null,null,null,null,null,"2011-12-28"]
[64,null,null,null,null,null,"Pominat rok",null,null,null,0,"Plateno   ",null,null,null,null,null,null,null,null,null,null,null,null,null,null,"2011-12-28"]
[65,null,null,null,null,null,"Pominat rok",null,null,null,0,"Plateno   ",null,null,null,null,null,null,null,null,null,null,null,null,null,null,"2011-12-28"]
[66,null,null,null,null,null,{"$f":"IF(F70-AA70>=1,F70-AA70,\"Pominat rok\")","v":"Pominat rok"},null,null,null,{"$f":"N70+P70+R70+T70+V70+X70","v":0},{"$f":"IF(J70-K70>=1,J70-K70,\"Plateno   \")","v":"Plateno   "},null,null,null,null,null,null,null,null,null,null,null,null,null,null,{"$f":"TODAY()","v":"2011-12-28"}]
[67,null,null,null,null,null,"Pominat rok",null,null,null,0,"Plateno   ",null,null,null,null,null,null,null,null,null,null,null,null,null,null,"2011-12-28"]
[68,null,null,null,null,null,"Pominat rok",null,null,null,0,"Plateno   ",null,null,null,null,null,null,null,null,null,null,null,null,null,null,"2011-12-28"]
[69,null,null,null,null,null,"Pominat rok",null,null,null,0,"Plateno   ",null,null,null,null,null,null,null,null,null,null,null,null,null,null,"2011-12-28"]
[70,null,null,null,null,null,"Pominat rok",null,null,null,0,"Plateno   ",null,null,null,null,null,null,null,null,null,null,null,null,null,null,"2011-12-28"]
[71,null,null,null,null,null,"Pominat rok",null,null,null,0,"Plateno   ",null,null,null,null,null,null,null,null,null,null,null,null,null,null,"2011-12-28"]
[72,null,null,null,null,null,"Pominat rok",null,null,null,0,"Plateno   ",null,null,null,null,null,null,null,null,null,null,null,null,null,null,"2011-12-28"]
[73,null,null,null,null,null,"Pominat rok",null,null,null,0,"Plateno   ",null,null,null,null,null,null,null,null,null,null,null,null,null,null,"2011-12-28"]
[74,null,null,null,null,null,"Pominat rok",null,null,null,0,"Plateno   ",null,null,null,null,null,null,null,null,null,null,null,null,null,null,"2011-12-28"]
[75,null,null,null,null,null,"Pominat rok",null,null,null,0,"Plateno   ",null,null,null,null,null,null,null,null,null,null,null,null,null,null,"2011-12-28"]
[76,null,null,null,null,null,"Pominat rok",null,null,null,0,"Plateno   ",null,null,null,null,null,null,null,null,null,null,null,null,null,null,"2011-12-28"]
[77,null,null,null,null,null,"Pominat rok",null,null,null,0,"Plateno   ",null,null,null,null,null,null,null,null,null,null,null,null,null,null,"2011-12-28"]
[78,null,null,null,null,null,"Pominat rok",null,null,null,0,"Plateno   ",null,null,null,null,null,null,null,null,null,null,null,null,null,null,"2011-12-28"]
[79,null,null,null,null,null,"Pominat rok",null,null,null,0,"Plateno   ",null,null,null,null,null,null,null,null,null,null,null,null,null,null,"2011-12-28"]
[80,null,null,null,null,null,"Pominat rok",null,null,null,0,"Plateno   ",null,null,null,null,null,null,null,null,null,null,null,null,null,null,"2011-12-28"]
[81,null,null,null,null,null,"Pominat rok",null,null,null,0,"Plateno   ",null,null,null,null,null,null,null,null,null,null,null,null,null,null,"2011-12-28"]
[82,null,null,null,null,null,"Pominat rok",null,null,null,0,"Plateno   ",null,null,null,null,null,null,null,null,null,null,null,null,null,null,"2011-12-28"]
[83,null,null,null,null,null,"Pominat rok",null,null,null,0,"Plateno   ",null,null,null,null,null,null,null,null,null,null,null,null,null,null,"2011-12-28"]
[84,null,null,null,null,null,"Pominat rok",null,null,null,0,"Plateno   ",null,null,null,null,null,null,null,null,null,null,null,null,null,null,"2011-12-28"]
[85,null,null,null,null,null,"Pominat rok",null,null,null,0,"Plateno   ",null,null,null,null,null,null,null,null,null,null,null,null,null,null,"2011-12-28"]
[86,null,null,null,null,null,"Pominat rok",null,null,null,0,"Plateno   ",null,null,null,null,null,null,null,null,null,null,null,null,null,null,"2011-12-28"]
[87,null,null,null,null,null,"Pominat rok",null,null,null,0,"Plateno   ",null,null,null,null,null,null,null,null,null,null,null,null,null,null,"2011-12-28"]
[88,null,null,null,null,null,"Pominat rok",null,null,null,0,"Plateno   ",null,null,null,null,null,null,null,null,null,null,null,null,null,null,"2011-12-28"]
[89,null,null,null,null,null,"Pominat rok",null,null,null,0,"Plateno   ",null,null,null,null,null,null,null,null,null,null,null,null,null,null,"2011-12-28"]
[90,null,null,null,null,null,"Pominat rok",null,null,null,0,"Plateno   ",null,null,null,null,null,null,null,null,null,null,null,null,null,null,"2011-12-28"]
[91,null,null,null,null,null,"Pominat rok",null,null,null,0,"Plateno   ",null,null,null,null,null,null,null,null,null,null,null,null,null,null,"2011-12-28"]
[92,null,null,null,null,null,"Pominat rok",null,null,null,0,"Plateno   ",null,null,null,null,null,null,null,null,null,null,null,null,null,null,"2011-12-28"]
[93,null,null,null,null,null,"Pominat rok",null,null,null,0,"Plateno   ",null,null,null,null,null,null,null,null,null,null,null,null,null,null,"2011-12-28"]
[94,null,null,null,null,null,"Pominat rok",null,null,null,0,"Plateno   ",null,null,null,null,null,null,null,null,null,null,null,null,null,null,"2011-12-28"]
[95,null,null,null,null,null,"Pominat rok",null,null,null,0,"Plateno   ",null,null,null,null,null,null,null,null,null,null,null,null,null,null,"2011-12-28"]
[96,null,null,null,null,null,"Pominat rok",null,null,null,0,"Plateno   ",null,null,null,null,null,null,null,null,null,null,null,null,null,null,"2011-12-28"]
[97,null,null,null,null,null,"Pominat rok",null,null,null,0,"Plateno   ",null,null,null,null,null,null,null,null,null,null,null,null,null,null,"2011-12-28"]
[98,null,null,null,null,null,"Pominat rok",null,null,null,0,"Plateno   ",null,null,null,null,null,null,null,null,null,null,null,null,null,null,"2011-12-28"]
[99,null,null,null,null,null,"Pominat rok",null,null,null,0,"Plateno   ",null,null,null,null,null,null,null,null,null,null,null,null,null,null,"2011-12-28"]
[100,null,null,null,null,null,"Pominat rok",null,null,null,0,"Plateno   ",null,null,null,null,null,null,null,null,null,null,null,null,null,null,"2011-12-28"]
[101,null,null,null,null,null,"Pominat rok",null,null,null,0,"Plateno   ",null,null,null,null,null,null,null,null,null,null,null,null,null,null,"2011-12-28"]
[102,null,null,null,null,null,"Pominat rok",null,null,null,0,"Plateno   ",null,null,null,null,null,null,null,null,null,null,null,null,null,null,"2011-12-28"]
[103,null,null,null,null,null,"Pominat rok",null,null,null,0,"Plateno   ",null,null,null,null,null,null,null,null,null,null,null,null,null,null,"2011-12-28"]
[104,null,null,null,null,null,"Pominat rok",null,null,null,0,"Plateno   ",null,null,null,null,null,null,null,null,null,null,null,null,null,null,"2011-12-28"]
[105,null,null,null,null,null,"Pominat rok",null,null,null,0,"Plateno   ",null,null,null,null,null,null,null,null,null,null,null,null,null,null,"2011-12-28"]
[106,null,null,null,null,null,"Pominat rok",null,null,null,0,"Plateno   ",null,null,null,null,null,null,null,null,null,null,null,null,null,null,"2011-12-28"]
[107,null,null,null,null,null,"Pominat rok",null,null,null,0,"Plateno   ",null,null,null,null,null,null,null,null,null,null,null,null,null,null,"2011-12-28"]
[108,null,null,null,null,null,"Pominat rok",null,null,null,0,"Plateno   ",null,null,null,null,null,null,null,null,null,null,null,null,null,null,"2011-12-28"]
[109,null,null,null,null,null,"Pominat rok",null,null,null,0,"Plateno   ",null,null,null,null,null,null,null,null,null,null,null,null,null,null,"2011-12-28"]
[110,null,null,null,null,null,"Pominat rok",null,null,null,0,"Plateno   ",null,null,null,null,null,null,null,null,null,null,null,null,null,null,"2011-12-28"]
[111,null,null,null,null,null,"Pominat rok",null,null,null,0,"Plateno   ",null,null,null,null,null,null,null,null,null,null,null,null,null,null,"2011-12-28"]
[112,null,null,null,null,null,"Pominat rok",null,null,null,0,"Plateno   ",null,null,null,null,null,null,null,null,null,null,null,null,null,null,"2011-12-28"]
[113,null,null,null,null,null,"Pominat rok",null,null,null,0,"Plateno   ",null,null,null,null,null,null,null,null,null,null,null,null,null,null,"2011-12-28"]
[114,null,null,null,null,null,"Pominat rok",null,null,null,0,"Plateno   ",null,null,null,null,null,null,null,null,null,null,null,null,null,null,"2011-12-28"]
[115,null,null,null,null,null,"Pominat rok",null,null,null,0,"Plateno   ",null,null,null,null,null,null,null,null,null,null,null,null,null,null,"2011-12-28"]
[116,null,null,null,null,null,"Pominat rok",null,null,null,0,"Plateno   ",null,null,null,null,null,null,null,null,null,null,null,null,null,null,"2011-12-28"]
[117,null,null,null,null,null,"Pominat rok",null,null,null,0,"Plateno   ",null,null,null,null,null,null,null,null,null,null,null,null,null,null,"2011-12-28"]
[118,null,null,null,null,null,"Pominat rok",null,null,null,0,"Plateno   ",null,null,null,null,null,null,null,null,null,null,null,null,null,null,"2011-12-28"]
[119,null,null,null,null,null,"Pominat rok",null,null,null,0,"Plateno   ",null,null,null,null,null,null,null,null,null,null,null,null,null,null,"2011-12-28"]
[120,null,null,null,null,null,"Pominat rok",null,null,null,0,"Plateno   ",null,null,null,null,null,null,null,null,null,null,null,null,null,null,"2011-12-28"]
[121,null,null,null,null,null,"Pominat rok",null,null,null,0,"Plateno   ",null,null,null,null,null,null,null,null,null,null,null,null,null,null,"2011-12-28"]
[122,null,null,null,null,null,"Pominat rok",null,null,null,0,"Plateno   ",null,null,null,null,null,null,null,null,null,null,null,null,null,null,"2011-12-28"]
[123,null,null,null,null,null,"Pominat rok",null,null,null,0,"Plateno   ",null,null,null,null,null,null,null,null,null,null,null,null,null,null,"2011-12-28"]
[124,null,null,null,null,null,"Pominat rok",null,null,null,0,"Plateno   ",null,null,null,null,null,null,null,null,null,null,null,null,null,null,"2011-12-28"]
[125,null,null,null,null,null,"Pominat rok",null,null,null,0,"Plateno   ",null,null,null,null,null,null,null,null,null,null,null,null,null,null,"2011-12-28"]
[126,null,null,null,null,null,"Pominat rok",null,null,null,0,"Plateno   ",null,null,null,null,null,null,null,null,null,null,null,null,null,null,"2011-12-28"]
[127,null,null,null,null,null,"Pominat rok",null,null,null,0,"Plateno   ",null,null,null,null,null,null,null,null,null,null,null,null,null,null,"2011-12-28"]
[128,null,null,null,null,null,"Pominat rok",null,null,null,0,"Plateno   ",null,null,null,null,null,null,null,null,null,null,null,null,null,null,"2011-12-28"]
[129,null,null,null,null,null,"Pominat rok",null,null,null,0,"Plateno   ",null,null,null,null,null,null,null,null,null,null,null,null,null,null,"2011-12-28"]
[130,null,null,null,null,null,{"$f":"IF(F134-AA134>=1,F134-AA134,\"Pominat rok\")","v":"Pominat rok"},null,null,null,{"$f":"N134+P134+R134+T134+V134+X134","v":0},{"$f":"IF(J134-K134>=1,J134-K134,\"Plateno   \")","v":"Plateno   "},null,null,null,null,null,null,null,null,null,null,null,null,null,null,{"$f":"TODAY()","v":"2011-12-28"}]
[131,null,null,null,null,null,"Pominat rok",null,null,null,0,"Plateno   ",null,null,null,null,null,null,null,null,null,null,null,null,null,null,"2011-12-28"]
[132,null,null,null,null,null,"Pominat rok",null,null,null,0,"Plateno   ",null,null,null,null,null,null,null,null,null,null,null,null,null,null,"2011-12-28"]
[133,null,null,null,null,null,"Pominat rok",null,null,null,0,"Plateno   ",null,null,null,null,null,null,null,null,null,null,null,null,null,null,"2011-12-28"]
[134,null,null,null,null,null,"Pominat rok",null,null,null,0,"Plateno   ",null,null,null,null,null,null,null,null,null,null,null,null,null,null,"2011-12-28"]
[135,null,null,null,null,null,"Pominat rok",null,null,null,0,"Plateno   ",null,null,null,null,null,null,null,null,null,null,null,null,null,null,"2011-12-28"]
[136,null,null,null,null,null,"Pominat rok",null,null,null,0,"Plateno   ",null,null,null,null,null,null,null,null,null,null,null,null,null,null,"2011-12-28"]
[137,null,null,null,null,null,"Pominat rok",null,null,null,0,"Plateno   ",null,null,null,null,null,null,null,null,null,null,null,null,null,null,"2011-12-28"]
[138,null,null,null,null,null,"Pominat rok",null,null,null,0,"Plateno   ",null,null,null,null,null,null,null,null,null,null,null,null,null,null,"2011-12-28"]
[139,null,null,null,null,null,"Pominat rok",null,null,null,0,"Plateno   ",null,null,null,null,null,null,null,null,null,null,null,null,null,null,"2011-12-28"]
[140,null,null,null,null,null,"Pominat rok",null,null,null,0,"Plateno   ",null,null,null,null,null,null,null,null,null,null,null,null,null,null,"2011-12-28"]
[141,null,null,null,null,null,"Pominat rok",null,null,null,0,"Plateno   ",null,null,null,null,null,null,null,null,null,null,null,null,null,null,"2011-12-28"]
[142,null,null,null,null,null,"Pominat rok",null,null,null,0,"Plateno   ",null,null,null,null,null,null,null,null,null,null,null,null,null,null,"2011-12-28"]
[143,null,null,null,null,null,"Pominat rok",null,null,null,0,"Plateno   ",null,null,null,null,null,null,null,null,null,null,null,null,null,null,"2011-12-28"]
[144,null,null,null,null,null,"Pominat rok",null,null,null,0,"Plateno   ",null,null,null,null,null,null,null,null,null,null,null,null,null,null,"2011-12-28"]
[145,null,null,null,null,null,"Pominat rok",null,null,null,0,"Plateno   ",null,null,null,null,null,null,null,null,null,null,null,null,null,null,"2011-12-28"]
[146,null,null,null,null,null,"Pominat rok",null,null,null,0,"Plateno   ",null,null,null,null,null,null,null,null,null,null,null,null,null,null,"2011-12-28"]
[147,null,null,null,null,null,"Pominat rok",null,null,null,0,"Plateno   ",null,null,null,null,null,null,null,null,null,null,null,null,null,null,"2011-12-28"]
[148,null,null,null,null,null,"Pominat rok",null,null,null,0,"Plateno   ",null,null,null,null,null,null,null,null,null,null,null,null,null,null,"2011-12-28"]
[149,null,null,null,null,null,"Pominat rok",null,null,null,0,"Plateno   ",null,null,null,null,null,null,null,null,null,null,null,null,null,null,"2011-12-28"]
[150,null,null,null,null,null,"Pominat rok",null,null,null,0,"Plateno   ",null,null,null,null,null,null,null,null,null,null,null,null,null,null,"2011-12-28"]
[151,null,null,null,null,null,"Pominat rok",null,null,null,0,"Plateno   ",null,null,null,null,null,null,null,null,null,null,null,null,null,null,"2011-12-28"]
[152,null,null,null,null,null,"Pominat rok",null,null,null,0,"Plateno   ",null,null,null,null,null,null,null,null,null,null,null,null,null,null,"2011-12-28"]
[153,null,null,null,null,null,"Pominat rok",null,null,null,0,"Plateno   ",null,null,null,null,null,null,null,null,null,null,null,null,null,null,"2011-12-28"]
[154,null,null,null,null,null,"Pominat rok",null,null,null,0,"Plateno   ",null,null,null,null,null,null,null,null,null,null,null,null,null,null,"2011-12-28"]
[155,null,null,null,null,null,"Pominat rok",null,null,null,0,"Plateno   ",null,null,null,null,null,null,null,null,null,null,null,null,null,null,"2011-12-28"]
[156,null,null,null,null,null,"Pominat rok",null,null,null,0,"Plateno   ",null,null,null,null,null,null,null,null,null,null,null,null,null,null,"2011-12-28"]
[157,null,null,null,null,null,"Pominat rok",null,null,null,0,"Plateno   ",null,null,null,null,null,null,null,null,null,null,null,null,null,null,"2011-12-28"]
[158,null,null,null,null,null,"Pominat rok",null,null,null,0,"Plateno   ",null,null,null,null,null,null,null,null,null,null,null,null,null,null,"2011-12-28"]
[159,null,null,null,null,null,"Pominat rok",null,null,null,0,"Plateno   ",null,null,null,null,null,null,null,null,null,null,null,null,null,null,"2011-12-28"]
[160,null,null,null,null,null,"Pominat rok",null,null,null,0,"Plateno   ",null,null,null,null,null,null,null,null,null,null,null,null,null,null,"2011-12-28"]
[161,null,null,null,null,null,"Pominat rok",null,null,null,0,"Plateno   ",null,null,null,null,null,null,null,null,null,null,null,null,null,null,"2011-12-28"]
[162,null,null,null,null,null,"Pominat rok",null,null,null,0,"Plateno   ",null,null,null,null,null,null,null,null,null,null,null,null,null,null,"2011-12-28"]
[163,null,null,null,null,null,"Pominat rok",null,null,null,0,"Plateno   ",null,null,null,null,null,null,null,null,null,null,null,null,null,null,"2011-12-28"]
[164,null,null,null,null,null,"Pominat rok",null,null,null,0,"Plateno   ",null,null,null,null,null,null,null,null,null,null,null,null,null,null,"2011-12-28"]
[165,null,null,null,null,null,"Pominat rok",null,null,null,0,"Plateno   ",null,null,null,null,null,null,null,null,null,null,null,null,null,null,"2011-12-28"]
[166,null,null,null,null,null,"Pominat rok",null,null,null,0,"Plateno   ",null,null,null,null,null,null,null,null,null,null,null,null,null,null,"2011-12-28"]
[167,null,null,null,null,null,"Pominat rok",null,null,null,0,"Plateno   ",null,null,null,null,null,null,null,null,null,null,null,null,null,null,"2011-12-28"]
[168,null,null,null,null,null,"Pominat rok",null,null,null,0,"Plateno   ",null,null,null,null,null,null,null,null,null,null,null,null,null,null,"2011-12-28"]
[169,null,null,null,null,null,"Pominat rok",null,null,null,0,"Plateno   ",null,null,null,null,null,null,null,null,null,null,null,null,null,null,"2011-12-28"]
[170,null,null,null,null,null,"Pominat rok",null,null,null,0,"Plateno   ",null,null,null,null,null,null,null,null,null,null,null,null,null,null,"2011-12-28"]
[171,null,null,null,null,null,"Pominat rok",null,null,null,0,"Plateno   ",null,null,null,null,null,null,null,null,null,null,null,null,null,null,"2011-12-28"]
[172,null,null,null,null,null,"Pominat rok",null,null,null,0,"Plateno   ",null,null,null,null,null,null,null,null,null,null,null,null,null,null,"2011-12-28"]
[173,null,null,null,null,null,"Pominat rok",null,null,null,0,"Plateno   ",null,null,null,null,null,null,null,null,null,null,null,null,null,null,"2011-12-28"]
[174,null,null,null,null,null,"Pominat rok",null,null,null,0,"Plateno   ",null,null,null,null,null,null,null,null,null,null,null,null,null,null,"2011-12-28"]
[175,null,null,null,null,null,"Pominat rok",null,null,null,0,"Plateno   ",null,null,null,null,null,null,null,null,null,null,null,null,null,null,"2011-12-28"]
[176,null,null,null,null,null,"Pominat rok",null,null,null,0,"Plateno   ",null,null,null,null,null,null,null,null,null,null,null,null,null,null,"2011-12-28"]
[177,null,null,null,null,null,"Pominat rok",null,null,null,0,"Plateno   ",null,null,null,null,null,null,null,null,null,null,null,null,null,null,"2011-12-28"]
[178,null,null,null,null,null,"Pominat rok",null,null,null,0,"Plateno   ",null,null,null,null,null,null,null,null,null,null,null,null,null,null,"2011-12-28"]
[179,null,null,null,null,null,"Pominat rok",null,null,null,0,"Plateno   ",null,null,null,null,null,null,null,null,null,null,null,null,null,null,"2011-12-28"]
[180,null,null,null,null,null,"Pominat rok",null,null,null,0,"Plateno   ",null,null,null,null,null,null,null,null,null,null,null,null,null,null,"2011-12-28"]
[181,null,null,null,null,null,"Pominat rok",null,null,null,0,"Plateno   ",null,null,null,null,null,null,null,null,null,null,null,null,null,null,"2011-12-28"]
[182,null,null,null,null,null,"Pominat rok",null,null,null,0,"Plateno   ",null,null,null,null,null,null,null,null,null,null,null,null,null,null,"2011-12-28"]
[183,null,null,null,null,null,"Pominat rok",null,null,null,0,"Plateno   ",null,null,null,null,null,null,null,null,null,null,null,null,null,null,"2011-12-28"]
[184,null,null,null,null,null,"Pominat rok",null,null,null,0,"Plateno   ",null,null,null,null,null,null,null,null,null,null,null,null,null,null,"2011-12-28"]
[185,null,null,null,null,null,"Pominat rok",null,null,null,0,"Plateno   ",null,null,null,null,null,null,null,null,null,null,null,null,null,null,"2011-12-28"]
[186,null,null,null,null,null,"Pominat rok",null,null,null,0,"Plateno   ",null,null,null,null,null,null,null,null,null,null,null,null,null,null,"2011-12-28"]
[187,null,null,null,null,null,"Pominat rok",null,null,null,0,"Plateno   ",null,null,null,null,null,null,null,null,null,null,null,null,null,null,"2011-12-28"]
[188,null,null,null,null,null,"Pominat rok",null,null,null,0,"Plateno   ",null,null,null,null,null,null,null,null,null,null,null,null,null,null,"2011-12-28"]
[189,null,null,null,null,null,"Pominat rok",null,null,null,0,"Plateno   ",null,null,null,null,null,null,null,null,null,null,null,null,null,null,"2011-12-28"]
[190,null,null,null,null,null,"Pominat rok",null,null,null,0,"Plateno   ",null,null,null,null,null,null,null,null,null,null,null,null,null,null,"2011-12-28"]
[191,null,null,null,null,null,"Pominat rok",null,null,null,0,"Plateno   ",null,null,null,null,null,null,null,null,null,null,null,null,null,null,"2011-12-28"]
[192,null,null,null,null,null,"Pominat rok",null,null,null,0,"Plateno   ",null,null,null,null,null,null,null,null,null,null,null,null,null,null,"2011-12-28"]
[193,null,null,null,null,null,"Pominat rok",null,null,null,0,"Plateno   ",null,null,null,null,null,null,null,null,null,null,null,null,null,null,"2011-12-28"]
[194,null,null,null,null,null,{"$f":"IF(F198-AA198>=1,F198-AA198,\"Pominat rok\")","v":"Pominat rok"},null,null,null,{"$f":"N198+P198+R198+T198+V198+X198","v":0},{"$f":"IF(J198-K198>=1,J198-K198,\"Plateno   \")","v":"Plateno   "},null,null,null,null,null,null,null,null,null,null,null,null,null,null,{"$f":"TODAY()","v":"2011-12-28"}]
[195,null,null,null,null,null,"Pominat rok",null,null,null,0,"Plateno   ",null,null,null,null,null,null,null,null,null,null,null,null,null,null,"2011-12-28"]
[196,null,null,null,null,null,"Pominat rok",null,null,null,0,"Plateno   ",null,null,null,null,null,null,null,null,null,null,null,null,null,null,"2011-12-28"]
[197,null,null,null,null,null,"Pominat rok",null,null,null,0,"Plateno   ",null,null,null,null,null,null,null,null,null,null,null,null,null,null,"2011-12-28"]
[198,null,null,null,null,null,"Pominat rok",null,null,null,0,"Plateno   ",null,null,null,null,null,null,null,null,null,null,null,null,null,null,"2011-12-28"]
[199,null,null,null,null,null,"Pominat rok",null,null,null,0,"Plateno   ",null,null,null,null,null,null,null,null,null,null,null,null,null,null,"2011-12-28"]
[200,null,null,null,null,null,"Pominat rok",null,null,null,0,"Plateno   ",null,null,null,null,null,null,null,null,null,null,null,null,null,null,"2011-12-28"]
[201,null,null,null,null,null,"Pominat rok",null,null,null,0,"Plateno   ",null,null,null,null,null,null,null,null,null,null,null,null,null,null,"2011-12-28"]
[202,null,null,null,null,null,"Pominat rok",null,null,null,0,"Plateno   ",null,null,null,null,null,null,null,null,null,null,null,null,null,null,"2011-12-28"]
[203,null,null,null,null,null,"Pominat rok",null,null,null,0,"Plateno   ",null,null,null,null,null,null,null,null,null,null,null,null,null,null,"2011-12-28"]
[204,null,null,null,null,null,"Pominat rok",null,null,null,0,"Plateno   ",null,null,null,null,null,null,null,null,null,null,null,null,null,null,"2011-12-28"]
[205,null,null,null,null,null,"Pominat rok",null,null,null,0,"Plateno   ",null,null,null,null,null,null,null,null,null,null,null,null,null,null,"2011-12-28"]
[206,null,null,null,null,null,"Pominat rok",null,null,null,0,"Plateno   ",null,null,null,null,null,null,null,null,null,null,null,null,null,null,"2011-12-28"]
[207,null,null,null,null,null,"Pominat rok",null,null,null,0,"Plateno   ",null,null,null,null,null,null,null,null,null,null,null,null,null,null,"2011-12-28"]
[208,null,null,null,null,null,"Pominat rok",null,null,null,0,"Plateno   ",null,null,null,null,null,null,null,null,null,null,null,null,null,null,"2011-12-28"]
[209,null,null,null,null,null,"Pominat rok",null,null,null,0,"Plateno   ",null,null,null,null,null,null,null,null,null,null,null,null,null,null,"2011-12-28"]
[210,null,null,null,null,null,"Pominat rok",null,null,null,0,"Plateno   ",null,null,null,null,null,null,null,null,null,null,null,null,null,null,"2011-12-28"]
[211,null,null,null,null,null,"Pominat rok",null,null,null,0,"Plateno   ",null,null,null,null,null,null,null,null,null,null,null,null,null,null,"2011-12-28"]
[212,null,null,null,null,null,"Pominat rok",null,null,null,0,"Plateno   ",null,null,null,null,null,null,null,null,null,null,null,null,null,null,"2011-12-28"]
[213,null,null,null,null,null,"Pominat rok",null,null,null,0,"Plateno   ",null,null,null,null,null,null,null,null,null,null,null,null,null,null,"2011-12-28"]
[214,null,null,null,null,null,"Pominat rok",null,null,null,0,"Plateno   ",null,null,null,null,null,null,null,null,null,null,null,null,null,null,"2011-12-28"]
[215,null,null,null,null,null,"Pominat rok",null,null,null,0,"Plateno   ",null,null,null,null,null,null,null,null,null,null,null,null,null,null,"2011-12-28"]
[216,null,null,null,null,null,"Pominat rok",null,null,null,0,"Plateno   ",null,null,null,null,null,null,null,null,null,null,null,null,null,null,"2011-12-28"]
[217,null,null,null,null,null,"Pominat rok",null,null,null,0,"Plateno   ",null,null,null,null,null,null,null,null,null,null,null,null,null,null,"2011-12-28"]
[218,null,null,null,null,null,"Pominat rok",null,null,null,0,"Plateno   ",null,null,null,null,null,null,null,null,null,null,null,null,null,null,"2011-12-28"]
[219,null,null,null,null,null,"Pominat rok",null,null,null,0,"Plateno   ",null,null,null,null,null,null,null,null,null,null,null,null,null,null,"2011-12-28"]
[220,null,null,null,null,null,"Pominat rok",null,null,null,0,"Plateno   ",null,null,null,null,null,null,null,null,null,null,null,null,null,null,"2011-12-28"]
[221,null,null,null,null,null,"Pominat rok",null,null,null,0,"Plateno   ",null,null,null,null,null,null,null,null,null,null,null,null,null,null,"2011-12-28"]
[222,null,null,null,null,null,"Pominat rok",null,null,null,0,"Plateno   ",null,null,null,null,null,null,null,null,null,null,null,null,null,null,"2011-12-28"]
[223,null,null,null,null,null,"Pominat rok",null,null,null,0,"Plateno   ",null,null,null,null,null,null,null,null,null,null,null,null,null,null,"2011-12-28"]
[224,null,null,null,null,null,"Pominat rok",null,null,null,0,"Plateno   ",null,null,null,null,null,null,null,null,null,null,null,null,null,null,"2011-12-28"]
[225,null,null,null,null,null,"Pominat rok",null,null,null,0,"Plateno   ",null,null,null,null,null,null,null,null,null,null,null,null,null,null,"2011-12-28"]
[226,null,null,null,null,null,"Pominat rok",null,null,null,0,"Plateno   ",null,null,null,null,null,null,null,null,null,null,null,null,null,null,"2011-12-28"]
[227,null,null,null,null,null,"Pominat rok",null,null,null,0,"Plateno   ",null,null,null,null,null,null,null,null,null,null,null,null,null,null,"2011-12-28"]
[228,null,null,null,null,null,"Pominat rok",null,null,null,0,"Plateno   ",null,null,null,null,null,null,null,null,null,null,null,null,null,null,"2011-12-28"]
[229,null,null,null,null,null,"Pominat rok",null,null,null,0,"Plateno   ",null,null,null,null,null,null,null,null,null,null,null,null,null,null,"2011-12-28"]
[230,null,null,null,null,null,"Pominat rok",null,null,null,0,"Plateno   ",null,null,null,null,null,null,null,null,null,null,null,null,null,null,"2011-12-28"]
[231,null,null,null,null,null,"Pominat rok",null,null,null,0,"Plateno   ",null,null,null,null,null,null,null,null,null,null,null,null,null,null,"2011-12-28"]
[232,null,null,null,null,null,"Pominat rok",null,null,null,0,"Plateno   ",null,null,null,null,null,null,null,null,null,null,null,null,null,null,"2011-12-28"]
[233,null,null,null,null,null,"Pominat rok",null,null,null,0,"Plateno   ",null,null,null,null,null,null,null,null,null,null,null,null,null,null,"2011-12-28"]
[234,null,null,null,null,null,"Pominat rok",null,null,null,0,"Plateno   ",null,null,null,null,null,null,null,null,null,null,null,null,null,null,"2011-12-28"]
[235,null,null,null,null,null,"Pominat rok",null,null,null,0,"Plateno   ",null,null,null,null,null,null,null,null,null,null,null,null,null,null,"2011-12-28"]
[236,null,null,null,null,null,"Pominat rok",null,null,null,0,"Plateno   ",null,null,null,null,null,null,null,null,null,null,null,null,null,null,"2011-12-28"]
[237,null,null,null,null,null,"Pominat rok",null,null,null,0,"Plateno   ",null,null,null,null,null,null,null,null,null,null,null,null,null,null,"2011-12-28"]
[238,null,null,null,null,null,"Pominat rok",null,null,null,0,"Plateno   ",null,null,null,null,null,null,null,null,null,null,null,null,null,null,"2011-12-28"]
[239,null,null,null,null,null,"Pominat rok",null,null,null,0,"Plateno   ",null,null,null,null,null,null,null,null,null,null,null,null,null,null,"2011-12-28"]
[240,null,null,null,null,null,"Pominat rok",null,null,null,0,"Plateno   ",null,null,null,null,null,null,null,null,null,null,null,null,null,null,"2011-12-28"]
[241,null,null,null,null,null,"Pominat rok",null,null,null,0,"Plateno   ",null,null,null,null,null,null,null,null,null,null,null,null,null,null,"2011-12-28"]
[242,null,null,null,null,null,"Pominat rok",null,null,null,0,"Plateno   ",null,null,null,null,null,null,null,null,null,null,null,null,null,null,"2011-12-28"]
[243,null,null,null,null,null,"Pominat rok",null,null,null,0,"Plateno   ",null,null,null,null,null,null,null,null,null,null,null,null,null,null,"2011-12-28"]
[244,null,null,null,null,null,"Pominat rok",null,null,null,0,"Plateno   ",null,null,null,null,null,null,null,null,null,null,null,null,null,null,"2011-12-28"]
[245,null,null,null,null,null,"Pominat rok",null,null,null,0,"Plateno   ",null,null,null,null,null,null,null,null,null,null,null,null,null,null,"2011-12-28"]
[246,null,null,null,null,null,"Pominat rok",null,null,null,0,"Plateno   ",null,null,null,null,null,null,null,null,null,null,null,null,null,null,"2011-12-28"]
[247,null,null,null,null,null,"Pominat rok",null,null,null,0,"Plateno   ",null,null,null,null,null,null,null,null,null,null,null,null,null,null,"2011-12-28"]
[248,null,null,null,null,null,"Pominat rok",null,null,null,0,"Plateno   ",null,null,null,null,null,null,null,null,null,null,null,null,null,null,"2011-12-28"]
[249,null,null,null,null,null,"Pominat rok",null,null,null,0,"Plateno   ",null,null,null,null,null,null,null,null,null,null,null,null,null,null,"2011-12-28"]
[250,null,null,null,null,null,"Pominat rok",null,null,null,0,"Plateno   ",null,null,null,null,null,null,null,null,null,null,null,null,null,null,"2011-12-28"]
[251,null,null,null,null,null,"Pominat rok",null,null,null,0,"Plateno   ",null,null,null,null,null,null,null,null,null,null,null,null,null,null,"2011-12-28"]
[252,null,null,null,null,null,"Pominat rok",null,null,null,0,"Plateno   ",null,null,null,null,null,null,null,null,null,null,null,null,null,null,"2011-12-28"]
[253,null,null,null,null,null,"Pominat rok",null,null,null,0,"Plateno   ",null,null,null,null,null,null,null,null,null,null,null,null,null,null,"2011-12-28"]
[254,null,null,null,null,null,"Pominat rok",null,null,null,0,"Plateno   ",null,null,null,null,null,null,null,null,null,null,null,null,null,null,"2011-12-28"]
[255,null,null,null,null,null,"Pominat rok",null,null,null,0,"Plateno   ",null,null,null,null,null,null,null,null,null,null,null,null,null,null,"2011-12-28"]
[256,null,null,null,null,null,"Pominat rok",null,null,null,0,"Plateno   ",null,null,null,null,null,null,null,null,null,null,null,null,null,null,"2011-12-28"]
[257,null,null,null,null,null,"Pominat rok",null,null,null,0,"Plateno   ",null,null,null,null,null,null,null,null,null,null,null,null,null,null,"2011-12-28"]
[258,null,null,null,null,null,{"$f":"IF(F262-AA262>=1,F262-AA262,\"Pominat rok\")","v":"Pominat rok"},null,null,null,{"$f":"N262+P262+R262+T262+V262+X262","v":0},{"$f":"IF(J262-K262>=1,J262-K262,\"Plateno   \")","v":"Plateno   "},null,null,null,null,null,null,null,null,null,null,null,null,null,null,{"$f":"TODAY()","v":"2011-12-28"}]
[259,null,null,null,null,null,"Pominat rok",null,null,null,0,"Plateno   ",null,null,null,null,null,null,null,null,null,null,null,null,null,null,"2011-12-28"]
[260,null,null,null,null,null,"Pominat rok",null,null,null,0,"Plateno   ",null,null,null,null,null,null,null,null,null,null,null,null,null,null,"2011-12-28"]
[261,null,null,null,null,null,"Pominat rok",null,null,null,0,"Plateno   ",null,null,null,null,null,null,null,null,null,null,null,null,null,null,"2011-12-28"]
[262,null,null,null,null,null,"Pominat rok",null,null,null,0,"Plateno   ",null,null,null,null,null,null,null,null,null,null,null,null,null,null,"2011-12-28"]
[263,null,null,null,null,null,"Pominat rok",null,null,null,0,"Plateno   ",null,null,null,null,null,null,null,null,null,null,null,null,null,null,"2011-12-28"]
[264,null,null,null,null,null,"Pominat rok",null,null,null,0,"Plateno   ",null,null,null,null,null,null,null,null,null,null,null,null,null,null,"2011-12-28"]
[265,null,null,null,null,null,"Pominat rok",null,null,null,0,"Plateno   ",null,null,null,null,null,null,null,null,null,null,null,null,null,null,"2011-12-28"]
[266,null,null,null,null,null,"Pominat rok",null,null,null,0,"Plateno   ",null,null,null,null,null,null,null,null,null,null,null,null,null,null,"2011-12-28"]
[267,null,null,null,null,null,"Pominat rok",null,null,null,0,"Plateno   ",null,null,null,null,null,null,null,null,null,null,null,null,null,null,"2011-12-28"]
[268,null,null,null,null,null,"Pominat rok",null,null,null,0,"Plateno   ",null,null,null,null,null,null,null,null,null,null,null,null,null,null,"2011-12-28"]
[269,null,null,null,null,null,"Pominat rok",null,null,null,0,"Plateno   ",null,null,null,null,null,null,null,null,null,null,null,null,null,null,"2011-12-28"]
[270,null,null,null,null,null,"Pominat rok",null,null,null,0,"Plateno   ",null,null,null,null,null,null,null,null,null,null,null,null,null,null,"2011-12-28"]
[271,null,null,null,null,null,"Pominat rok",null,null,null,0,"Plateno   ",null,null,null,null,null,null,null,null,null,null,null,null,null,null,"2011-12-28"]
[272,null,null,null,null,null,"Pominat rok",null,null,null,0,"Plateno   ",null,null,null,null,null,null,null,null,null,null,null,null,null,null,"2011-12-28"]
[273,null,null,null,null,null,"Pominat rok",null,null,null,0,"Plateno   ",null,null,null,null,null,null,null,null,null,null,null,null,null,null,"2011-12-28"]
[274,null,null,null,null,null,"Pominat rok",null,null,null,0,"Plateno   ",null,null,null,null,null,null,null,null,null,null,null,null,null,null,"2011-12-28"]
[275,null,null,null,null,null,"Pominat rok",null,null,null,0,"Plateno   ",null,null,null,null,null,null,null,null,null,null,null,null,null,null,"2011-12-28"]
[276,null,null,null,null,null,"Pominat rok",null,null,null,0,"Plateno   ",null,null,null,null,null,null,null,null,null,null,null,null,null,null,"2011-12-28"]
[277,null,null,null,null,null,"Pominat rok",null,null,null,0,"Plateno   ",null,null,null,null,null,null,null,null,null,null,null,null,null,null,"2011-12-28"]
[278,null,null,null,null,null,"Pominat rok",null,null,null,0,"Plateno   ",null,null,null,null,null,null,null,null,null,null,null,null,null,null,"2011-12-28"]
[279,null,null,null,null,null,"Pominat rok",null,null,null,0,"Plateno   ",null,null,null,null,null,null,null,null,null,null,null,null,null,null,"2011-12-28"]
[280,null,null,null,null,null,"Pominat rok",null,null,null,0,"Plateno   ",null,null,null,null,null,null,null,null,null,null,null,null,null,null,"2011-12-28"]
[281,null,null,null,null,null,"Pominat rok",null,null,null,0,"Plateno   ",null,null,null,null,null,null,null,null,null,null,null,null,null,null,"2011-12-28"]
[282,null,null,null,null,null,"Pominat rok",null,null,null,0,"Plateno   ",null,null,null,null,null,null,null,null,null,null,null,null,null,null,"2011-12-28"]
[283,null,null,null,null,null,"Pominat rok",null,null,null,0,"Plateno   ",null,null,null,null,null,null,null,null,null,null,null,null,null,null,"2011-12-28"]
[284,null,null,null,null,null,"Pominat rok",null,null,null,0,"Plateno   ",null,null,null,null,null,null,null,null,null,null,null,null,null,null,"2011-12-28"]
[285,null,null,null,null,null,"Pominat rok",null,null,null,0,"Plateno   ",null,null,null,null,null,null,null,null,null,null,null,null,null,null,"2011-12-28"]
[286,null,null,null,null,null,"Pominat rok",null,null,null,0,"Plateno   ",null,null,null,null,null,null,null,null,null,null,null,null,null,null,"2011-12-28"]
[287,null,null,null,null,null,"Pominat rok",null,null,null,0,"Plateno   ",null,null,null,null,null,null,null,null,null,null,null,null,null,null,"2011-12-28"]
[288,null,null,null,null,null,"Pominat rok",null,null,null,0,"Plateno   ",null,null,null,null,null,null,null,null,null,null,null,null,null,null,"2011-12-28"]
[289,null,null,null,null,null,"Pominat rok",null,null,null,0,"Plateno   ",null,null,null,null,null,null,null,null,null,null,null,null,null,null,"2011-12-28"]
[290,null,null,null,null,null,"Pominat rok",null,null,null,0,"Plateno   ",null,null,null,null,null,null,null,null,null,null,null,null,null,null,"2011-12-28"]
[291,null,null,null,null,null,"Pominat rok",null,null,null,0,"Plateno   ",null,null,null,null,null,null,null,null,null,null,null,null,null,null,"2011-12-28"]
[292,null,null,null,null,null,"Pominat rok",null,null,null,0,"Plateno   ",null,null,null,null,null,null,null,null,null,null,null,null,null,null,"2011-12-28"]
[293,null,null,null,null,null,"Pominat rok",null,null,null,0,"Plateno   ",null,null,null,null,null,null,null,null,null,null,null,null,null,null,"2011-12-28"]
[294,null,null,null,null,null,"Pominat rok",null,null,null,0,"Plateno   ",null,null,null,null,null,null,null,null,null,null,null,null,null,null,"2011-12-28"]
[295,null,null,null,null,null,"Pominat rok",null,null,null,0,"Plateno   ",null,null,null,null,null,null,null,null,null,null,null,null,null,null,"2011-12-28"]
[296,null,null,null,null,null,"Pominat rok",null,null,null,0,"Plateno   ",null,null,null,null,null,null,null,null,null,null,null,null,null,null,"2011-12-28"]
[297,null,null,null,null,null,"Pominat rok",null,null,null,0,"Plateno   ",null,null,null,null,null,null,null,null,null,null,null,null,null,null,"2011-12-28"]
[298,null,null,null,null,null,"Pominat rok",null,null,null,0,"Plateno   ",null,null,null,null,null,null,null,null,null,null,null,null,null,null,"2011-12-28"]
[299,null,null,null,null,null,"Pominat rok",null,null,null,0,"Plateno   ",null,null,null,null,null,null,null,null,null,null,null,null,null,null,"2011-12-28"]
[300,null,null,null,null,null,"Pominat rok",null,null,null,0,"Plateno   ",null,null,null,null,null,null,null,null,null,null,null,null,null,null,"2011-12-28"]

{"sheet":"RABOTEN NALOG","index":1,"n_rows":23,"n_cols":9,"rows_kept":23,"cut":false,"hidden":false,"merged":[[17,3,17,4],[14,8,14,9],[15,8,15,9],[52,0,85,9],[0,10,85,16],[1,7,1,9],[2,7,2,9],[4,0,4,5],[4,7,6,9],[5,0,5,5],[6,0,6,5],[7,0,7,5],[10,1,10,2],[11,1,11,2],[12,1,12,2],[12,8,12,9],[19,0,20,2],[22,0,42,9],[13,8,13,9],[17,1,17,2]]}
[]
[null,null,null,null,null,null,null,"DOOEL ,,GezaDizajn\" Demir Hisar"]
[null,null,null,null,null,null,null,"Telefon: 047552777  070886308  075426628"]
[]
[null,null,null,null,null,null,null,"Raboten Nalog"]
[]
[]
[]
[null,null,null,null,null,null,null,"Nalog Broj:",3]
[null,null,null,null,null,null,null,"Datum:",{"$f":"TODAY()","v":"2011-12-28"}]
[null,"Datum na prijava :",null,{"$f":"IF($I$13=\"\",\"\",VLOOKUP($I$13,'EVIDENCIJA ZA RABOTA'!$B$5:'EVIDENCIJA ZA RABOTA'!$Y$300,4,FALSE))","v":{"$error":"#N/A"}}]
[null,"Datum za realizacija :",null,{"$f":"IF($I$13=\"\",\"\",VLOOKUP($I$13,'EVIDENCIJA ZA RABOTA'!$B$5:'EVIDENCIJA ZA RABOTA'!$Y$300,5,FALSE))","v":{"$error":"#N/A"}}]
[null,"Denovi za realizacija :",null,{"$f":"IF($I$13=\"\",\"\",VLOOKUP($I$13,'EVIDENCIJA ZA RABOTA'!$B$5:'EVIDENCIJA ZA RABOTA'!$Y$300,6,FALSE))","v":{"$error":"#N/A"}},null,null,null,"Klient :",{"$f":"OFFSET('EVIDENCIJA ZA RABOTA'!B4,'RABOTEN NALOG'!I9,,,1)","v":0}]
[null,null,null,null,null,null,null,"Adresa :",{"$f":"IF($I$13=\"\",\"\",VLOOKUP($I$13,'EVIDENCIJA ZA RABOTA'!$B$5:'EVIDENCIJA ZA RABOTA'!$Y$300,2,FALSE))","v":{"$error":"#N/A"}}]
[null,null,null,null,null,null,null,"Telefon :",{"$f":"IF($I$13=\"\",\"\",VLOOKUP($I$13,'EVIDENCIJA ZA RABOTA'!$B$5:'EVIDENCIJA ZA RABOTA'!$Y$300,3,FALSE))","v":{"$error":"#N/A"}}]
[]
[]
[null,"Rabota :",null,{"$f":"IF($I$13=\"\",\"\",VLOOKUP($I$13,'EVIDENCIJA ZA RABOTA'!$B$5:'EVIDENCIJA ZA RABOTA'!$Y$300,7,FALSE))","v":{"$error":"#N/A"}}]
[]
["Zabele{ka:"]
[]
[]
[{"$f":"IF($I$13=\"\",\"\",VLOOKUP($I$13,'EVIDENCIJA ZA RABOTA'!$B$5:'EVIDENCIJA ZA RABOTA'!$Y$300,8,FALSE))","v":{"$error":"#N/A"}}]

{"sheet":"POTVRDA ZA NAPLATA","index":2,"n_rows":49,"n_cols":27,"rows_kept":49,"cut":false,"hidden":false,"merged":[[51,0,125,7],[48,1,48,2],[46,1,46,2],[47,1,47,2],[29,4,29,7],[31,0,31,7],[35,0,35,1],[35,2,35,4],[37,0,37,1],[39,0,39,2],[45,5,45,6],[42,1,42,2],[43,1,43,2],[44,1,44,2],[45,1,45,2],[34,0,34,1],[28,4,28,7],[8,0,8,1],[8,2,8,4],[10,0,10,1],[12,0,12,2],[21,1,21,2],[20,1,20,2],[18,5,18,6],[0,8,125,25],[1,4,1,7],[2,4,2,7],[4,0,4,7],[6,0,6,1],[6,2,6,4],[7,0,7,1],[7,2,7,4],[17,1,17,2],[18,1,18,2],[19,1,19,2],[15,1,15,2],[16,1,16,2],[33,0,33,1],[33,2,33,4],[34,2,34,4]]}
[null,null,null,null,null,null,null,null,null,null,null,null,null,null,null,null,null,null,null,null,null,null,null,null,null,null,"Zoran Nastevski"]
[null,null,null,null,"DOOEL ,,Geza Dizajn\" Demir Hisar",null,null,null,null,null,null,null,null,null,null,null,null,null,null,null,null,null,null,null,null,null,"Aleksandar Pupun~evski"]
[null,null,null,null,"Tf 047552777   070886308   075426628",null,null,null,null,null,null,null,null,null,null,null,null,null,null,null,null,null,null,null,null,null,"Marijana Nastevska"]
[null,null,null,null,null,null,null,null,null,null,null,null,null,null,null,null,null,null,null,null,null,null,null,null,null,null,"Lidija Pupun~evska"]
["Potvrda za naplata"]
[]
["Klient:",null,{"$f":"OFFSET('EVIDENCIJA ZA RABOTA'!B4,'POTVRDA ZA NAPLATA'!G7,,,1)","v":0},null,null,"R.Broj:",1]
["Adresa:",null,{"$f":"IF($C$7=\"\",\"\",VLOOKUP($C$7,'EVIDENCIJA ZA RABOTA'!$B$5:'EVIDENCIJA ZA RABOTA'!$Y$300,2,FALSE))","v":{"$error":"#N/A"}},null,null,"Datum:",{"$f":"TODAY()","v":"2011-12-28"}]
["Kontakt:",null,{"$f":"IF($C$7=\"\",\"\",VLOOKUP($C$7,'EVIDENCIJA ZA RABOTA'!$B$5:'EVIDENCIJA ZA RABOTA'!$Y$300,3,FALSE))","v":{"$error":"#N/A"}}]
[]
["Rabota:",null,"Izrabotka na ",{"$f":"IF($C$7=\"\",\"\",VLOOKUP($C$7,'EVIDENCIJA ZA RABOTA'!$B$5:'EVIDENCIJA ZA RABOTA'!$Y$300,7,FALSE))","v":{"$error":"#N/A"}}]
[]
["Vkupno za naplata:",null,null,{"$f":"IF($C$7=\"\",\"\",VLOOKUP($C$7,'EVIDENCIJA ZA RABOTA'!$B$5:'EVIDENCIJA ZA RABOTA'!$Y$300,9,FALSE))","v":{"$error":"#N/A"}}]
[]
["Datum",null,"Plateno"]
[{"$f":"IF($C$7=\"\",\"\",VLOOKUP($C$7,'EVIDENCIJA ZA RABOTA'!$B$5:'EVIDENCIJA ZA RABOTA'!$Y$300,12,FALSE))","v":{"$error":"#N/A"}},{"$f":"IF($C$7=\"\",\"\",VLOOKUP($C$7,'EVIDENCIJA ZA RABOTA'!$B$5:'EVIDENCIJA ZA RABOTA'!$Y$300,13,FALSE))","v":{"$error":"#N/A"}}]
[{"$f":"IF($C$7=\"\",\"\",VLOOKUP($C$7,'EVIDENCIJA ZA RABOTA'!$B$5:'EVIDENCIJA ZA RABOTA'!$Y$300,14,FALSE))","v":{"$error":"#N/A"}},{"$f":"IF($C$7=\"\",\"\",VLOOKUP($C$7,'EVIDENCIJA ZA RABOTA'!$B$5:'EVIDENCIJA ZA RABOTA'!$Y$300,15,FALSE))","v":{"$error":"#N/A"}}]
[{"$f":"IF($C$7=\"\",\"\",VLOOKUP($C$7,'EVIDENCIJA ZA RABOTA'!$B$5:'EVIDENCIJA ZA RABOTA'!$Y$300,16,FALSE))","v":{"$error":"#N/A"}},{"$f":"IF($C$7=\"\",\"\",VLOOKUP($C$7,'EVIDENCIJA ZA RABOTA'!$B$5:'EVIDENCIJA ZA RABOTA'!$Y$300,17,FALSE))","v":{"$error":"#N/A"}}]
[{"$f":"IF($C$7=\"\",\"\",VLOOKUP($C$7,'EVIDENCIJA ZA RABOTA'!$B$5:'EVIDENCIJA ZA RABOTA'!$Y$300,18,FALSE))","v":{"$error":"#N/A"}},{"$f":"IF($C$7=\"\",\"\",VLOOKUP($C$7,'EVIDENCIJA ZA RABOTA'!$B$5:'EVIDENCIJA ZA RABOTA'!$Y$300,19,FALSE))","v":{"$error":"#N/A"}},null,null,null,"Zoran Nastevski"]
[{"$f":"IF($C$7=\"\",\"\",VLOOKUP($C$7,'EVIDENCIJA ZA RABOTA'!$B$5:'EVIDENCIJA ZA RABOTA'!$Y$300,20,FALSE))","v":{"$error":"#N/A"}},{"$f":"IF($C$7=\"\",\"\",VLOOKUP($C$7,'EVIDENCIJA ZA RABOTA'!$B$5:'EVIDENCIJA ZA RABOTA'!$Y$300,21,FALSE))","v":{"$error":"#N/A"}}]
[{"$f":"IF($C$7=\"\",\"\",VLOOKUP($C$7,'EVIDENCIJA ZA RABOTA'!$B$5:'EVIDENCIJA ZA RABOTA'!$Y$300,22,FALSE))","v":{"$error":"#N/A"}},{"$f":"IF($C$7=\"\",\"\",VLOOKUP($C$7,'EVIDENCIJA ZA RABOTA'!$B$5:'EVIDENCIJA ZA RABOTA'!$Y$300,23,FALSE))","v":{"$error":"#N/A"}}]
["Vkupno :",{"$f":"B16+B17+B18+B19+B20+B21","v":{"$error":"#N/A"}}]
[]
[]
[]
[]
[]
[]
[null,null,null,null,"DOOEL ,,Geza Dizajn\" Demir Hisar"]
[null,null,null,null,"Tf 047552777   070886308   075426628"]
[]
["Potvrda za naplata"]
[]
["Klient:",null,{"$f":"C7","v":0},null,null,"R.Broj:",{"$f":"G7","v":1}]
["Adresa:",null,{"$f":"C8","v":{"$error":"#N/A"}},null,null,"Datum:",{"$f":"TODAY()","v":"2011-12-28"}]
["Kontakt:",null,{"$f":"C9","v":{"$error":"#N/A"}}]
[]
["Rabota:",null,"Izrabotka na ",{"$f":"D11","v":{"$error":"#N/A"}}]
[]
["Vkupno za naplata:",null,null,{"$f":"D13","v":{"$error":"#N/A"}}]
[]
["Datum",null,"Plateno"]
[{"$f":"A16","v":{"$error":"#N/A"}},{"$error":"#N/A"}]
[{"$error":"#N/A"},{"$error":"#N/A"}]
[{"$error":"#N/A"},{"$error":"#N/A"}]
[{"$error":"#N/A"},{"$error":"#N/A"},null,null,null,{"$f":"F19","v":"Zoran Nastevski"}]
[{"$error":"#N/A"},{"$error":"#N/A"}]
[{"$error":"#N/A"},{"$error":"#N/A"}]
["Vkupno:",{"$f":"B43+B44+B45+B46+B47+B48","v":{"$error":"#N/A"}}]

{"sheet":"GEZA","index":3,"n_rows":14,"n_cols":60,"rows_kept":14,"cut":false,"hidden":false,"merged":[[1,0,1,6],[2,3,500,3],[0,2,0,4],[0,8,2,8],[0,0,0,1],[0,5,0,6]]}
["Sostojba:",null,{"$f":"G3-C3","v":0},null,null,null,null,null," "]
["Geza"]
["Datum i vreme","ZABELE[KA",{"$f":"SUM(C4:C501)","v":0},null,"Datum i vreme","ZABELE[KA",{"$f":"SUM(G4:G501)","v":0}]
[]
[]
[null,null,null,null,null,null,null,null,null,null,null,null,null,null,null,null,null,null,null,null,null,null,null,null,null,null,null,null,null,null,null,null,null,null,null,null,null,null,null,null,null,null,null,null,null,null,null,null,null,null,null,null,null,null,null,null,null,null,null,"s"]
[]
[]
[]
[]
[]
[]
[]
[null,null,null,null,null,null,null,null,"Odi na FIRMA "]

{"sheet":"MAGARE","index":4,"n_rows":6,"n_cols":60,"rows_kept":6,"cut":false,"hidden":false,"merged":[[1,0,1,6],[2,3,500,3],[0,2,0,4],[0,8,2,8],[0,0,0,1],[0,5,0,6]]}
["Sostojba:",null,{"$f":"G3-C3","v":0}]
["Magare"]
["Datum i vreme","ZABELE[KA",{"$f":"SUM(C4:C501)","v":0},null,"Datum i vreme","ZABELE[KA",{"$f":"SUM(G4:G501)","v":0}]
[]
[]
[null,null,null,null,null,null,null,null,null,null,null,null,null,null,null,null,null,null,null,null,null,null,null,null,null,null,null,null,null,null,null,null,null,null,null,null,null,null,null,null,null,null,null,null,null,null,null,null,null,null,null,null,null,null,null,null,null,null,null,"s"]

{"sheet":"FIRMA","index":5,"n_rows":6,"n_cols":60,"rows_kept":6,"cut":false,"hidden":false,"merged":[[1,0,1,6],[2,3,500,3],[0,2,0,4],[0,8,2,8],[0,0,0,1],[0,5,0,6]]}
["Sostojba:",null,{"$f":"G3-C3","v":0}]
["FIRMA"]
["Datum i vreme","ZABELE[KA",{"$f":"SUM(C4:C501)","v":0},null,"Datum i vreme","ZABELE[KA",{"$f":"SUM(G4:G501)","v":0}]
[]
[]
[null,null,null,null,null,null,null,null,null,null,null,null,null,null,null,null,null,null,null,null,null,null,null,null,null,null,null,null,null,null,null,null,null,null,null,null,null,null,null,null,null,null,null,null,null,null,null,null,null,null,null,null,null,null,null,null,null,null,null,"s"]